fUSD/lending_fUSD_20241108
["ID","MTS","AMOUNT","RATE_DAILY","PERIOD"]
[341692696,1731096433677,-183.58,0.00029318,2]
[341692697,1731096433699,-180.53,0.00029345,2]
[341692698,1731096433721,-9915.41009545,0.000295,7]
[341692700,1731096529739,2923.79,0.00030136,120]
[341692707,1731096635514,-250.0,0.00029038,2]
[341692708,1731096635524,-249.999999,0.000294,10]
[341692709,1731096635568,-250.000001,0.000294,10]
[341692710,1731096635577,-10505.761199,0.000295,7]
[341692711,1731096635623,-17036.35870555,0.000295,7]
[341692712,1731096635632,-800.0,0.000295,10]
[341692713,1731096635642,-200.0,0.000296,2]
[341692714,1731096635651,-217.46610665,0.000296,10]
[341692715,1731096636091,-882.53389335,0.000296,10]
[341692716,1731096636101,-1551.59999714,0.000296,2]
[341692717,1731096636110,-9247.84305966,0.00029648,2]
[341692744,1731096638434,-675.8753,0.000295,2]
[341692745,1731096638443,-441.32212602,0.00029648,2]
[341692746,1731096638457,-532.41548037,0.00029648,2]
[341692747,1731096638467,-150.99,0.00029686,2]
[341692748,1731096638476,-7000.0,0.000297,2]
[341692749,1731096638489,-1300.0,0.000297,10]
[341692750,1731096638499,-200.0,0.000298,10]
[341692751,1731096638508,-2000.0,0.0002988,2]
[341692752,1731096638518,-200.0,0.000299,10]
[341692753,1731096638527,-1091.177,0.00029962,24]
[341692754,1731096638536,-175.634,0.00029962,24]
[341692755,1731096638545,-315.54,0.0003,2]
[341692756,1731096638555,-705.0,0.0003,4]
[341692757,1731096638564,-1000.0,0.0003,5]
[341692758,1731096638573,-1000.0,0.0003,4]
[341692759,1731096638583,-1000.0,0.0003,3]
[341692760,1731096638592,-1026.0,0.0003,4]
[341692761,1731096638602,-1000.0,0.0003,3]
[341692762,1731096638612,-1000.0,0.0003,3]
[341692763,1731096638621,-759.99,0.00030036,2]
[341692764,1731096638631,-2889.63883065,0.00030036,2]
[341692765,1731096638640,-193.86955363,0.00030036,2]
[341692766,1731096638649,-671.33182133,0.00030036,2]
[341692767,1731096638658,-220.52239436,0.00030036,2]
[341692768,1731096638667,-359.64265278,0.00030036,5]
[341692769,1731096638677,-186.54011368,0.00030036,2]
[341692770,1731096638686,-398.0,0.000301,14]
[341692771,1731096638695,-196.0,0.000301,14]
[341692772,1731096638705,-158.0,0.000301,22]
[341692773,1731096638714,-221.19544626,0.00030126,2]
[341692774,1731096638723,-221.19544626,0.00030126,2]
[341692775,1731096638732,-227.06,0.00030126,3]
[341692776,1731096638742,-846.08,0.00030126,10]
[341692777,1731096638752,-6933.5667222,0.00030131,2]
[341692778,1731096638762,-702.2903315,0.00030131,2]
[341692779,1731096638772,-157.110904,0.00030133,2]
[341692780,1731096638784,-157.110904,0.00030133,2]
[341692781,1731096638793,-157.110904,0.00030133,3]
[341692782,1731096638803,-157.110904,0.00030133,3]
[341692783,1731096638812,-157.110904,0.00030133,4]
[341692784,1731096638821,-157.110904,0.00030133,4]
[341692785,1731096638830,-150.110904,0.00030133,2]
[341692786,1731096638839,-150.110904,0.00030133,3]
[341692787,1731096638849,-154.110904,0.00030133,5]
[341692788,1731096638857,-157.110904,0.00030134,2]
[341692789,1731096638867,-157.110904,0.00030134,2]
[341692790,1731096638875,-157.110904,0.00030134,3]
[341692791,1731096638885,-157.110904,0.00030134,3]
[341692792,1731096638894,-157.110904,0.00030134,4]
[341692793,1731096638903,-157.110904,0.00030134,4]
[341692794,1731096638912,-157.110904,0.00030134,4]
[341692795,1731096638920,-157.110904,0.00030134,5]
[341692796,1731096638929,-157.110904,0.00030134,5]
[341692797,1731096638944,-150.110904,0.00030134,2]
[341692798,1731096638953,-150.110904,0.00030134,3]
[341692799,1731096638964,-150.110904,0.00030134,5]
[341692800,1731096638973,-1263.37189023,0.00030135,15]
[341692801,1731096638983,-212.86860484,0.00030135,2]
[341692802,1731096638992,-618.8,0.00030135,7]
[341692803,1731096639001,-281.40993653,0.00030135,2]
[341692804,1731096639010,-3536.71953887,0.00030136,2]
[341692805,1731096639019,-19201.69042948,0.00030136,2]
[341692806,1731096639038,-117021.29446533,0.00030136,2]
[341692807,1731096639049,-55246.88598036,0.00030136,2]
[341692808,1731096639060,-358.64999988,0.00030136,2]
[341692809,1731096639071,-10061.4150706,0.00030136,2]
[341692810,1731096639703,-449.44209232,0.00030036,2]
[341692812,1731096639713,-1380.51700046,0.00030136,2]
[341692813,1731096639725,-2308.11,0.00030136,2]
[341692814,1731096639737,-919.793066,0.00030136,2]
[341692821,1731096640239,-12580.81524251,0.00030136,2]
[341692822,1731096640293,-5813.32825801,0.00030136,2]
[341692823,1731096640403,-292.036,0.00030136,2]
[341692926,1731096643453,-425.73720969,0.00030135,2]
[341692927,1731096643463,-20392.26573922,0.00030136,2]
[341692928,1731096643610,-90634.33917344,0.00030136,2]
[341692929,1731096643938,-453617.76999953,0.00030136,2]
[341692930,1731096643950,-13219.94905954,0.00030136,2]
[341692940,1731096646183,-570.32827493,0.00030135,2]
[341692941,1731096646195,-1518.8716869,0.00030136,2]
[341692942,1731096646342,-4868.86871842,0.00030136,2]
[341692943,1731096646450,-7715.90100002,0.00030136,2]
[341692944,1731096671061,300.0,0.00030135,120]
[341692945,1731096671185,300.0,0.00030151,120]
[341692946,1731096671364,300.0,0.00030199,120]
[341692947,1731096671489,300.0,0.00030299,120]
[341692948,1731096736810,2000.0,0.00030136,120]
[341692949,1731096737105,2000.0,0.00030136,120]
[341692950,1731096737401,475.34,0.00030136,120]
[341692951,1731096978066,152.15,0.00015342,2]
[341692954,1731097375421,450.0,0.00021,2]
[341692955,1731097508180,54397.85,0.00016,2]
[341692956,1731097508209,769675.67560328,0.00016,2]
[341692957,1731097555638,153653.32439672,0.0001892,2]
[341692958,1731097555665,12677.42530393,0.0001892,2]
[341692959,1731097571075,2335.28889248,0.000199,3]
[341692961,1731097690449,786.84892588,0.0001285,2]
[341692964,1731097745244,-5210.72307672,0.00022,2]
[341692965,1731097745274,-589.2137019,0.000224,2]
[341692966,1731097745296,-2399.89048791,0.000225,2]
[341692967,1731097745319,-500.0,0.00023,2]
[341692968,1731097745343,-4093.75584704,0.00023999,2]
[341692969,1731097745366,-626.68296453,0.00024,2]
[341692970,1731097745389,-500.0,0.00024932,2]
[341692971,1731097745412,-500.0,0.00024932,2]
[341692972,1731097745434,-500.0,0.00024932,2]
[341692973,1731097745455,-150.99,0.00024932,2]
[341692974,1731097745476,-1600.0,0.00024999,2]
[341692975,1731097745499,-550.0,0.00025,2]
[341692976,1731097745521,-26156.56483018,0.00025,2]
[341692977,1731097745541,-8809.41452889,0.00025,2]
[341692978,1731097745563,-738.0,0.00025624,2]
[341692979,1731097745585,-4235.72610245,0.00026,2]
[341692980,1731097745606,-171.82,0.00026277,2]
[341692981,1731097745631,-828.28,0.00026507,2]
[341692982,1731097745655,-150.0,0.00027,2]
[341692983,1731097745677,-4833.78434188,0.00027,2]
[341693004,1731097831429,-178.64,0.00027247,2]
[341693005,1731097831442,-10000.0,0.000273,2]
[341693006,1731097831456,-227.887759,0.00027397,2]
[341693007,1731097831470,-120.693761,0.00027397,2]
[341693008,1731097831484,-34.780848,0.00027397,2]
[341693009,1731097831497,-6449.75,0.00027542,2]
[341693010,1731097831508,-219.7,0.00027554,2]
[341693011,1731097831519,-941.465952,0.00027675,2]
[341693012,1731097831535,-959.354048,0.00027675,2]
[341693013,1731097831550,-6449.75,0.00027984,2]
[341693014,1731097831562,-1478.84,0.00027984,2]
[341693015,1731097831575,-37228.78,0.00027984,10]
[341693016,1731097831587,-2009.81,0.00027984,2]
[341693017,1731097831599,-735.42,0.00027984,2]
[341693018,1731097831610,-1727.45,0.00027984,2]
[341693019,1731097831622,-2245.18,0.00027984,2]
[341693020,1731097831634,-1411.59113982,0.00028122,2]
[341693021,1731097831650,-21159.61886018,0.00028122,2]
[341693022,1731097831665,-1245.02,0.00028124,10]
[341693023,1731097831679,-5938.82,0.00028128,2]
[341693024,1731097831690,-5576.4,0.00028134,2]
[341693025,1731097831704,-160.0,0.0002826,120]
[341693026,1731097831718,-500.0,0.00028314,2]
[341693028,1731097831730,-327.38223389,0.00028314,2]
[341693031,1731097831743,-500.0,0.00028314,2]
[341693033,1731097831755,-500.0,0.00028314,2]
[341693035,1731097831767,-344.26787165,0.00028314,2]
[341693037,1731097831779,-20469.56,0.00028315,2]
[341693039,1731097831791,-713.13,0.0002832,2]
[341693040,1731097831805,-500.0,0.00028375,2]
[341693041,1731097831816,-1000.0,0.00028378,2]
[341693042,1731097831827,-250.0,0.00028388,2]
[341693043,1731097831839,-200.0,0.00028403,7]
[341693044,1731097831850,-500.0,0.00028405,2]
[341693045,1731097831861,-6449.75,0.00028427,2]
[341693046,1731097831873,-5730.44261447,0.0002843,2]
[341693047,1731097831948,-823.62693438,0.0002843,2]
[341693048,1731097832065,-5009.51045115,0.0002843,2]
[341693049,1731097832078,-7004.92,0.00028445,2]
[341693050,1731097832090,-3900.1,0.00028455,2]
[341693051,1731097832102,-252.79,0.00028463,2]
[341693052,1731097832114,-2000.0,0.00028477,120]
[341693053,1731097832126,-282.26,0.00028493,2]
[341693054,1731097832138,-622.02,0.00028537,2]
[341693055,1731097832150,-250.0,0.00028588,2]
[341693056,1731097832163,-246.01,0.00028596,2]
[341693057,1731097832175,-150.66,0.00028611,2]
[341693058,1731097832188,-165.09,0.0002862,2]
[341693059,1731097832199,-150.66,0.00028658,2]
[341693060,1731097832213,-250.0,0.00028663,2]
[341693061,1731097832225,-1042.53,0.00028663,2]
[341693062,1731097832237,-1852.42,0.00028677,2]
[341693063,1731097832249,-178.64,0.00028681,2]
[341693064,1731097832261,-200.0,0.00028695,2]
[341693065,1731097832272,-181.57,0.00028703,2]
[341693066,1731097832284,-150.66,0.00028706,2]
[341693067,1731097832295,-150.66,0.00028754,2]
[341693068,1731097832307,-828.28,0.0002877,2]
[341693069,1731097832318,-150.66,0.00028801,2]
[341693070,1731097832329,-150.66,0.00028849,2]
[341693071,1731097832341,-6449.75,0.00028869,2]
[341693072,1731097832353,-1000.0,0.00028895,2]
[341693073,1731097832364,-150.66,0.00028897,2]
[341693074,1731097832375,-240.84,0.00028924,2]
[341693075,1731097832387,-570.88,0.00028992,120]
[341693076,1731097832398,-346.56,0.00029128,30]
[341693077,1731097832410,-632.76,0.00029136,7]
[341693078,1731097832422,-166.98,0.00029185,2]
[341693079,1731097832434,-500.0,0.000293,10]
[341693080,1731097832446,-6449.75,0.00029312,2]
[341693081,1731097832458,-1100.0,0.000294,10]
[341693082,1731097832472,-1700.0,0.000295,10]
[341693083,1731097832484,-2300.0,0.000296,10]
[341693084,1731097832496,-200.0,0.000296,2]
[341693085,1731097832508,-520.08474376,0.00029648,2]
[341693086,1731097832520,-3491.40945478,0.00029677,15]
[341693087,1731097832545,-2669.09375491,0.00029677,15]
[341693088,1731097832557,-1026.07810814,0.00029699,2]
[341693089,1731097832569,-2900.0,0.000297,10]
[341693090,1731097832581,-283.29,0.00029707,3]
[341693091,1731097832592,-685.83813696,0.00029707,3]
[341693092,1731097832607,-164.08186304,0.00029707,3]
[341693093,1731097832618,-139.36381506,0.00029717,15]
[341693094,1731097832632,-295.6043219,0.00029717,15]
[341693095,1731097832646,-749.9006,0.00029717,15]
[341693096,1731097832661,-4975.6344727,0.00029717,15]
[341693097,1731097832676,-713.13,0.00029736,2]
[341693098,1731097832688,-6449.75,0.00029754,2]
[341693099,1731097832700,-6160.50320966,0.00029757,15]
[341693100,1731097832712,-6160.50320966,0.00029797,15]
[341693101,1731097832724,-166.76,0.00029799,2]
[341693102,1731097832736,-1000.0,0.00029799,2]
[341693103,1731097832750,-2110.0,0.000298,2]
[341693104,1731097832762,-500.0,0.000298,10]
[341693105,1731097832773,-2000.0,0.0002983,2]
[341693106,1731097832785,-6160.50320966,0.00029837,15]
[341693107,1731097832796,-6160.50320966,0.00029876,15]
[341693108,1731097832807,-5743.98087379,0.00029887,2]
[341693109,1731097832821,-752.05123545,0.000299,2]
[341693110,1731097832833,-500.0,0.000299,10]
[341693111,1731097832844,-6160.50320966,0.00029916,15]
[341693112,1731097832855,-1000.0,0.00029917,2]
[341693113,1731097832866,-1500.0,0.00029922,2]
[341693114,1731097832877,-153.588,0.0002993,2]
[341693115,1731097832889,-255.5041,0.00029935,2]
[341693116,1731097832900,-565.1159,0.00029936,2]
[341693117,1731097832912,-1000.0,0.00029936,2]
[341693118,1731097832923,-28771.58581277,0.00029936,2]
[341693119,1731097832937,-3092.98238723,0.00029936,2]
[341693120,1731097832948,-182.70182887,0.00029936,2]
[341693121,1731097832961,-1755.663,0.00029945,24]
[341693122,1731097832973,-172.718,0.00029945,24]
[341693123,1731097832984,-182.70182883,0.0002995,2]
[341693124,1731097832995,-2712.90748654,0.00029956,15]
[341693125,1731097833014,-3447.59572312,0.00029956,15]
[341693126,1731097833025,-182.70182883,0.00029965,2]
[341693127,1731097833036,-182.70182883,0.00029979,2]
[341693128,1731097833047,-182.70182883,0.00029993,2]
[341693129,1731097833059,-1147.26148689,0.00029996,15]
[341693130,1731097833073,-5013.24172277,0.00029996,15]
[341693131,1731097833085,-151.0,0.0003,120]
[341693132,1731097833097,-753.0,0.0003,2]
[341693133,1731097833108,-319.05,0.0003,2]
[341693134,1731097833120,-1779.0,0.0003,2]
[341693135,1731097833131,-2168.0687614,0.0003,2]
[341693136,1731097833144,-933.81753201,0.0003,15]
[341693137,1731097833155,-180.0,0.0003,2]
[341693138,1731097833167,-203.3640156,0.0003,30]
[341693139,1731097833180,-182.70182883,0.00030007,2]
[341693140,1731097833193,-182.70182883,0.00030022,2]
[341693141,1731097833205,-200.0,0.0003003,24]
[341693142,1731097833220,-159.89061163,0.00030035,2]
[341693143,1731097833233,-239.64137629,0.00030035,2]
[341693144,1731097833245,-610.75232264,0.00030036,2]
[341693145,1731097833291,-283.06794255,0.00030036,2]
[341693148,1731097837471,-383.49118265,0.00029935,2]
[341693149,1731097837811,-116.50881735,0.00029935,2]
[341693150,1731097837820,-500.0,0.00029935,2]
[341693151,1731097837831,-286.730745,0.00029935,2]
[341693152,1731097837840,-500.0,0.00029935,2]
[341693153,1731097837849,-1398.89509175,0.00030036,2]
[341693154,1731097837860,-2850.26475934,0.00030036,2]
[341693155,1731097837912,-29946.43468372,0.00030036,2]
[341693157,1731097837921,-26346.29031114,0.00030036,2]
[341693158,1731097837932,-20165.63494256,0.00030036,2]
[341693160,1731097837943,-13910.4150024,0.00030036,2]
[341693163,1731097837955,-11369.4786295,0.00030036,2]
[341693165,1731097837974,-1386.61672262,0.00030036,2]
[341693167,1731097837986,-1531.24949178,0.00030036,2]
[341693169,1731097837995,-500.0,0.00030036,2]
[341693170,1731097838005,-1000.0,0.00030036,2]
[341693171,1731097838014,-603.18720764,0.00030036,2]
[341693182,1731097839356,-1509.64259488,0.00030036,2]
[341693183,1731097839425,-4163.00090069,0.00030036,2]
[341693184,1731097839434,-58.63139726,0.00030036,2]
[341693185,1731097839475,-287.49541684,0.00030036,2]
[341693186,1731097839485,-182.70182883,0.00030036,2]
[341693187,1731097839494,-1555.07067402,0.00030036,15]
[341693188,1731097839506,-4605.43253564,0.00030036,15]
[341693189,1731097839515,-371.04774439,0.00030036,2]
[341693190,1731097839524,-1146.97544538,0.00030036,2]
[341693191,1731097839534,-1292.04700048,0.00030036,2]
[341693192,1731097839543,-733.05172404,0.00030036,2]
[341693193,1731097839553,-1500.0,0.00030042,2]
[341693194,1731097839562,-1500.0,0.00030079,2]
[341693195,1731097839571,-332.0,0.0003009,2]
[341693196,1731097839580,-398.0,0.000301,14]
[341693197,1731097839589,-158.0,0.000301,22]
[341693198,1731097839599,-178.64,0.00030115,2]
[341693199,1731097839608,-150.110905,0.00030133,5]
[341693200,1731097839617,-150.110905,0.00030133,4]
[341693201,1731097839626,-150.110905,0.00030133,2]
[341693202,1731097839635,-150.110905,0.00030133,4]
[341693203,1731097839644,-150.110905,0.00030133,3]
[341693204,1731097839653,-150.110905,0.00030133,5]
[341693205,1731097839664,-150.110905,0.00030133,5]
[341693206,1731097839674,-150.110905,0.00030133,3]
[341693207,1731097839683,-150.110905,0.00030133,4]
[341693208,1731097839692,-150.110905,0.00030133,2]
[341693209,1731097839703,-150.110905,0.00030133,3]
[341693210,1731097839712,-150.110905,0.00030133,2]
[341693211,1731097839723,-154.110904,0.00030134,2]
[341693212,1731097839732,-154.110904,0.00030134,2]
[341693213,1731097839743,-154.110904,0.00030134,3]
[341693214,1731097839752,-154.110904,0.00030134,3]
[341693216,1731097839761,-154.110904,0.00030134,4]
[341693218,1731097839770,-150.110905,0.00030134,4]
[341693220,1731097839779,-400.0,0.00030135,10]
[341693222,1731097839788,-400.0,0.00030135,10]
[341693224,1731097839797,-300.0,0.00030135,120]
[341693226,1731097839806,-616.67,0.00030135,7]
[341693228,1731097839816,-3576.01642264,0.00030136,2]
[341693230,1731097839825,-195.20237362,0.00030136,7]
[341693232,1731097839834,-17836.37283606,0.00030136,2]
[341693234,1731097839845,-2970.03722,0.00030136,2]
[341693241,1731097839893,-690.34200092,0.00030136,2]
[341693243,1731097839905,-1259.96086,0.00030136,2]
[341693250,1731097842477,-417.63311083,0.00028121,2]
[341693251,1731097842487,-153.0,0.00028945,2]
[341693252,1731097842496,-358.39113926,0.00030026,10]
[341693253,1731097842508,-679.12886074,0.00030026,10]
[341693254,1731097842518,-3100.74745926,0.00030136,2]
[341693255,1731097842533,-513.18500005,0.00030136,2]
[341693256,1731097842545,-64008.78814029,0.00030136,2]
[341693257,1731097842592,-957500.30851699,0.00030136,2]
[341693258,1731097842602,-16416.9792634,0.00030136,2]
[341693259,1731097842611,-200.0,0.00030136,2]
[341693260,1731097842620,-200.0,0.00030136,2]
[341693261,1731097842629,-200.0,0.00030136,2]
[341693262,1731097842638,-200.0,0.00030136,2]
[341693263,1731097842647,-200.0,0.00030136,2]
[341693264,1731097842656,-200.0,0.00030136,2]
[341693265,1731097842668,-300.0,0.00030136,2]
[341693266,1731097842677,-501.09211031,0.00030136,2]
[341693267,1731097842686,-500.0,0.00030136,2]
[341693268,1731097842695,-335.62639649,0.00030136,2]
[341693269,1731097842704,-500.0,0.00030136,2]
[341693270,1731097842714,-500.0,0.00030136,2]
[341693271,1731097842724,-531.57725654,0.00030136,2]
[341693272,1731097842733,-500.0,0.00030136,2]
[341693273,1731097842744,-500.0,0.00030136,2]
[341693274,1731097842753,-500.0,0.00030136,2]
[341693275,1731097842762,-502.67433492,0.00030136,2]
[341693276,1731097842772,-615.58382337,0.00030136,2]
[341693277,1731097842782,-500.0,0.00030136,2]
[341693278,1731097842792,-524.10701779,0.00030136,2]
[341693279,1731097842803,-500.0,0.00030136,2]
[341693280,1731097842814,-500.0,0.00030136,2]
[341693281,1731097842823,-500.0,0.00030136,2]
[341693282,1731097842831,-500.17467279,0.00030136,2]
[341693283,1731097842840,-514.61479936,0.00030136,2]
[341693284,1731097842849,-508.37805632,0.00030136,2]
[341693285,1731097842858,-500.0,0.00030136,2]
[341693286,1731097842867,-500.0,0.00030136,2]
[341693287,1731097842878,-500.0,0.00030136,2]
[341693288,1731097842889,-500.0,0.00030136,2]
[341693289,1731097842898,-500.0,0.00030136,2]
[341693290,1731097842907,-500.0,0.00030136,2]
[341693291,1731097842916,-498.27437864,0.00030136,2]
[341693292,1731097842926,-500.0,0.00030136,2]
[341693293,1731097842935,-500.0,0.00030136,2]
[341693294,1731097842943,-472.98332302,0.00030136,2]
[341693295,1731097842952,-401.32586653,0.00030136,2]
[341693296,1731097842962,-500.0,0.00030136,2]
[341693297,1731097842972,-500.0,0.00030136,2]
[341693298,1731097842981,-500.0,0.00030136,2]
[341693299,1731097842991,-237.83107085,0.00030136,2]
[341693301,1731097843000,-500.0,0.00030136,2]
[341693303,1731097843009,-500.0,0.00030136,2]
[341693305,1731097843018,-500.0,0.00030136,2]
[341693307,1731097843027,-500.0,0.00030136,2]
[341693309,1731097843037,-500.0,0.00030136,2]
[341693310,1731097843046,-500.0,0.00030136,2]
[341693311,1731097843055,-294.50212727,0.00030136,2]
[341693312,1731097843065,-500.0,0.00030136,2]
[341693313,1731097843074,-500.0,0.00030136,2]
[341693314,1731097843083,-500.0,0.00030136,2]
[341693315,1731097843093,-500.0,0.00030136,2]
[341693316,1731097843103,-501.77618213,0.00030136,2]
[341693317,1731097843112,-264.06673336,0.00030136,2]
[341693318,1731097843121,-500.0,0.00030136,2]
[341693319,1731097843130,-500.0,0.00030136,2]
[341693320,1731097843139,-500.0,0.00030136,2]
[341693321,1731097843148,-500.0,0.00030136,2]
[341693322,1731097843158,-500.0,0.00030136,2]
[341693323,1731097843167,-500.0,0.00030136,2]
[341693324,1731097843176,-500.0,0.00030136,2]
[341693325,1731097843186,-500.0,0.00030136,2]
[341693326,1731097843195,-500.0,0.00030136,2]
[341693327,1731097843204,-500.0,0.00030136,2]
[341693328,1731097843213,-500.0,0.00030136,2]
[341693329,1731097843223,-500.0,0.00030136,2]
[341693330,1731097843232,-500.0,0.00030136,2]
[341693331,1731097843241,-500.0,0.00030136,2]
[341693332,1731097843251,-502.59626371,0.00030136,2]
[341693333,1731097843260,-500.0,0.00030136,2]
[341693334,1731097843269,-500.0,0.00030136,2]
[341693335,1731097843279,-500.0,0.00030136,2]
[341693336,1731097843287,-500.0,0.00030136,2]
[341693337,1731097843296,-500.0,0.00030136,2]
[341693338,1731097843305,-500.0,0.00030136,2]
[341693339,1731097843314,-500.0,0.00030136,2]
[341693340,1731097843323,-500.0,0.00030136,2]
[341693341,1731097843332,-323.34047296,0.00030136,2]
[341693342,1731097843341,-500.0,0.00030136,2]
[341693343,1731097843351,-500.0,0.00030136,2]
[341693344,1731097843360,-509.76793943,0.00030136,2]
[341693345,1731097843370,-602.14993475,0.00030136,2]
[341693346,1731097843379,-500.0,0.00030136,2]
[341693347,1731097843389,-500.0,0.00030136,2]
[341693348,1731097843398,-500.0,0.00030136,2]
[341693349,1731097843407,-500.0,0.00030136,2]
[341693350,1731097843416,-503.11125451,0.00030136,2]
[341693351,1731097843425,-500.0,0.00030136,2]
[341693352,1731097843434,-500.0,0.00030136,2]
[341693353,1731097843443,-500.0,0.00030136,2]
[341693354,1731097843452,-500.0,0.00030136,2]
[341693355,1731097843461,-155.06331852,0.00030136,2]
[341693356,1731097843470,-500.0,0.00030136,2]
[341693357,1731097843479,-500.0,0.00030136,2]
[341693358,1731097843489,-500.0,0.00030136,2]
[341693359,1731097843498,-500.0,0.00030136,2]
[341693360,1731097843507,-500.0,0.00030136,2]
[341693361,1731097843516,-500.0,0.00030136,2]
[341693362,1731097843525,-196.2,0.00030136,2]
[341693363,1731097843534,-500.0,0.00030136,2]
[341693364,1731097843543,-500.0,0.00030136,2]
[341693365,1731097843551,-500.0,0.00030136,2]
[341693366,1731097843560,-500.0,0.00030136,2]
[341693367,1731097843569,-500.0,0.00030136,2]
[341693368,1731097843581,-500.0,0.00030136,2]
[341693369,1731097843590,-500.0,0.00030136,2]
[341693370,1731097843599,-500.0,0.00030136,2]
[341693371,1731097843608,-500.0,0.00030136,2]
[341693372,1731097843617,-500.0,0.00030136,2]
[341693373,1731097843626,-500.0,0.00030136,2]
[341693374,1731097843635,-500.0,0.00030136,2]
[341693375,1731097843644,-500.0,0.00030136,2]
[341693376,1731097843653,-500.0,0.00030136,2]
[341693377,1731097843666,-500.0,0.00030136,2]
[341693378,1731097843675,-568.43,0.00030136,2]
[341693379,1731097843683,-500.0,0.00030136,2]
[341693380,1731097843693,-208.65476128,0.00030136,2]
[341693381,1731097843703,-500.0,0.00030136,2]
[341693382,1731097843714,-500.0,0.00030136,2]
[341693383,1731097843724,-500.0,0.00030136,2]
[341693384,1731097843735,-500.0,0.00030136,2]
[341693385,1731097843753,-500.0,0.00030136,2]
[341693386,1731097843765,-500.0,0.00030136,2]
[341693387,1731097843776,-500.0,0.00030136,2]
[341693388,1731097843785,-500.0,0.00030136,2]
[341693389,1731097843795,-500.0,0.00030136,2]
[341693390,1731097843804,-500.0,0.00030136,2]
[341693391,1731097843814,-500.0,0.00030136,2]
[341693392,1731097843823,-500.0,0.00030136,2]
[341693393,1731097843832,-500.0,0.00030136,2]
[341693394,1731097843841,-500.0,0.00030136,2]
[341693395,1731097843850,-500.0,0.00030136,2]
[341693396,1731097843859,-500.0,0.00030136,2]
[341693397,1731097843868,-500.0,0.00030136,2]
[341693398,1731097843878,-500.0,0.00030136,2]
[341693399,1731097843887,-500.0,0.00030136,2]
[341693400,1731097843897,-500.0,0.00030136,2]
[341693401,1731097843907,-210.68500087,0.00030136,2]
[341693402,1731097843917,-500.0,0.00030136,2]
[341693403,1731097843927,-500.0,0.00030136,2]
[341693404,1731097843937,-158.751889,0.00030136,7]
[341693405,1731097843947,-500.0,0.00030136,2]
[341693406,1731097843956,-463.3,0.00030136,2]
[341693407,1731097843965,-500.0,0.00030136,2]
[341693408,1731097843977,-500.0,0.00030136,2]
[341693409,1731097843987,-633.2133201,0.00030136,2]
[341693410,1731097843997,-500.0,0.00030136,2]
[341693411,1731097844007,-501.55003671,0.00030136,2]
[341693412,1731097844017,-500.0,0.00030136,2]
[341693413,1731097844026,-500.0,0.00030136,2]
[341693414,1731097844035,-500.0,0.00030136,2]
[341693415,1731097844044,-500.0,0.00030136,2]
[341693416,1731097844054,-500.0,0.00030136,2]
[341693417,1731097844063,-508.85181593,0.00030136,2]
[341693418,1731097844073,-500.0,0.00030136,2]
[341693419,1731097844083,-500.0,0.00030136,2]
[341693420,1731097844093,-216.73670361,0.00030136,2]
[341693421,1731097844102,-150.0,0.00030136,2]
[341693422,1731097844112,-150.0,0.00030136,2]
[341693423,1731097844123,-150.0,0.00030136,2]
[341693424,1731097844146,-150.0,0.00030136,2]
[341693425,1731097844202,-150.0,0.00030136,2]